fUSD/lending_fUSD_20260224
["ID","MTS","AMOUNT","RATE_DAILY","PERIOD"]
[406560072,1771943445544,-243.69912151,0.00015648,2]
[406560073,1771943445554,-1000.0,0.00015648,2]
[406560074,1771943445563,-2797.70584065,0.000158,60]
[406560075,1771943445573,-4689.0,0.000158,60]
[406560076,1771943445582,-2247.75609779,0.00015807,2]
[406560077,1771943445592,-339.07700431,0.00015989,2]
[406560078,1771943445601,-27854.77455985,0.00015995,2]
[406560079,1771943445610,-380.32235674,0.00016,2]
[406560080,1771943445620,-419.22118993,0.00016,2]
[406560081,1771943445629,-2725.04997657,0.00016092,2]
[406560082,1771943445639,-380.32235674,0.000161,2]
[406560083,1771943445649,-9999.99,0.00016116,2]
[406560084,1771943445659,-1500.0,0.00016196,2]
[406560085,1771943445668,-1390.05507377,0.00016196,2]
[406560086,1771943445678,-1500.0,0.00016196,2]
[406560087,1771943445687,-602.53164684,0.00016196,2]
[406560088,1771943445697,-1500.0,0.00016196,2]
[406560089,1771943445708,-1500.0,0.00016196,2]
[406560090,1771943445719,-693.71551848,0.00016196,2]
[406560091,1771943445729,-1500.0,0.00016196,2]
[406560092,1771943445738,-27500.03877492,0.000162,5]
[406560093,1771943445750,-380.32235674,0.000162,2]
[406560094,1771943445759,-454.1749961,0.00016236,2]
[406560095,1771943445769,-6453.0,0.00016261,2]
[406560096,1771943445778,-2129.0,0.00016266,2]
[406560097,1771943445787,-200.0,0.0001634,2]
[406560098,1771943445797,-454.1749961,0.00016397,2]
[406560099,1771943445806,-150.73989367,0.00016438,2]
[406560100,1771943445815,-454.1749961,0.00016558,2]
[406560101,1771943445825,-361.85708907,0.000166,2]
[406560102,1771943445834,-503.05357398,0.00016744,2]
[406560103,1771943445844,-932.65135931,0.00016744,2]
[406560104,1771943445854,-2000.0,0.00016744,2]
[406560105,1771943445863,-1255.82806005,0.00016744,2]
[406560106,1771943445873,-27854.77455985,0.00016851,2]
[406560107,1771943445882,-300.0,0.00017,2]
[406560108,1771943445892,-173.87087054,0.00017,7]
[406560109,1771943445902,-404976.30869257,0.00017,2]
[406560110,1771943445912,-461.85,0.00017152,2]
[406560111,1771943445923,-1200.21212036,0.00017292,2]
[406560112,1771943445933,-461.85,0.00017323,2]
[406560113,1771943445943,-461.85,0.00017495,2]
[406560114,1771943445954,-2039.3747218,0.000175,3]
[406560115,1771943445964,-461.85,0.00017666,2]
[406560116,1771943445974,-27854.77455985,0.00017708,2]
[406560117,1771943445985,-691.28,0.00017807,2]
[406560118,1771943445994,-512.1,0.00017807,2]
[406560119,1771943446003,-500.0,0.00017807,2]
[406560120,1771943446015,-566.19,0.00017807,2]
[406560121,1771943446026,-591.67,0.00017807,2]
[406560122,1771943446041,-917.0,0.00017807,2]
[406560123,1771943446052,-500.0,0.00017807,2]
[406560124,1771943446062,-500.0,0.00017807,2]
[406560125,1771943446073,-523.24,0.00017807,2]
[406560126,1771943446082,-858.26,0.00017807,2]
[406560127,1771943446092,-500.0,0.00017808,2]
[406560128,1771943446101,-500.0,0.00017808,2]
[406560129,1771943446110,-500.0,0.00017808,2]
[406560130,1771943446120,-500.0,0.00017808,2]
[406560131,1771943446130,-500.0,0.00017808,2]
[406560132,1771943446139,-500.0,0.00017808,2]
[406560133,1771943446149,-500.0,0.00017808,2]
[406560134,1771943446158,-500.0,0.00017808,2]
[406560135,1771943446168,-500.0,0.00017808,2]
[406560136,1771943446177,-547.41313151,0.00017808,2]
[406560137,1771943446186,-500.0,0.00017808,2]
[406560138,1771943446196,-1569.10006559,0.00017808,2]
[406560139,1771943446207,-1569.10006559,0.00017808,2]
[406560140,1771943446218,-1569.10006559,0.00017808,2]
[406560141,1771943446228,-1569.10006559,0.00017808,2]
[406560142,1771943446237,-1569.10006559,0.00017808,2]
[406560143,1771943446346,-1569.10006559,0.00017808,2]
[406560144,1771943446360,-1569.10006559,0.00017808,2]
[406560145,1771943446378,-1569.10006559,0.00017808,2]
[406560146,1771943446389,-1569.10006559,0.00017808,2]
[406560147,1771943446398,-1614.38709999,0.00017808,2]
[406560148,1771943446407,-1614.38709999,0.00017808,2]
[406560149,1771943446417,-1614.38709999,0.00017808,2]
[406560150,1771943446426,-1614.38709999,0.00017808,2]
[406560151,1771943446436,-1614.38709999,0.00017808,2]
[406560152,1771943446446,-1614.38709999,0.00017808,2]
[406560153,1771943446457,-800.0,0.00017808,2]
[406560154,1771943446466,-461.85,0.00017838,2]
[406560155,1771943446475,-1005.12410844,0.0001786,2]
[406560156,1771943446486,-9035.0,0.00017888,2]
[406560157,1771943446495,-3601.0,0.00017892,2]
[406560158,1771943446504,-200.0,0.00017937,2]
[406560159,1771943446513,-408.32664987,0.0001799,2]
[406560160,1771943446522,-300.0,0.00017999,2]
[406560161,1771943446531,-666.0,0.00017999,2]
[406560162,1771943446544,-2719178.10395962,0.00018,2]
[406560163,1771943446561,-174463.93511629,0.00018,2]
[406560164,1771943446780,-367.29733095,0.00018,2]
[406560165,1771943446791,-6305.75245446,0.00018,2]
[406560166,1771943447264,-500.0,0.00013698,2]
[406560167,1771943447274,-130.15,0.00013698,2]
[406560168,1771943447331,-369.85,0.00013698,2]
[406560169,1771943447342,-500.0,0.00013698,2]
[406560170,1771943447353,-500.0,0.00013698,2]
[406560171,1771943447363,-500.0,0.00013698,2]
[406560172,1771943447374,-502.16359539,0.00013698,2]
[406560173,1771943447384,-151.0,0.00014634,2]
[406560174,1771943447395,-33689.79686262,0.00015484,2]
[406560175,1771943447405,-874537.46304581,0.00018,2]
[406560176,1771943447415,-461.89325126,0.00018009,2]
[406560177,1771943447426,-800.0,0.00018904,2]
[406560178,1771943447436,-350.0,0.00019,2]
[406560179,1771943447447,-6108.0,0.00019676,2]
[406560180,1771943447457,-2581.38710496,0.0001995,15]
[406560181,1771943447468,-557.58452337,0.0002,120]
[406560182,1771943447479,-627.23211955,0.0002,120]
[406560183,1771943447489,-1948.3550072,0.0002,120]
[406560184,1771943447499,-14345.74723251,0.0002,120]
[406560185,1771943447509,-500.0,0.00020002,6]
[406560186,1771943447519,-1052.0,0.00020297,2]
[406560187,1771943447529,-1052.0,0.00020346,2]
[406560188,1771943447539,-13725.948506,0.0002052,7]
[406560189,1771943447549,-1052.0,0.00020535,2]
[406560190,1771943447559,-1052.0,0.00020663,2]
[406560191,1771943447570,-1052.0,0.00020734,2]
[406560192,1771943447581,-1052.0,0.00020864,2]
[406560193,1771943447592,-1052.0,0.0002089,2]
[406560194,1771943447602,-490.95499564,0.000209,30]
[406560195,1771943447612,-400.0,0.00021,2]
[406560196,1771943447622,-1052.0,0.00021026,2]
[406560197,1771943447633,-1052.0,0.00021137,2]
[406560198,1771943447645,-159.62910539,0.00021189,2]
[406560199,1771943447657,-1052.0,0.00021329,2]
[406560200,1771943447672,-391.36,0.00021411,2]
[406560201,1771943447684,-1052.0,0.00021491,2]
[406560202,1771943447696,-1052.0,0.00021497,2]
[406560203,1771943447707,-1052.0,0.00021567,2]
[406560204,1771943447718,-1052.0,0.00021685,2]
[406560205,1771943447732,-339.07700431,0.0002188,2]
[406560206,1771943447745,-1052.0,0.00021909,2]
[406560207,1771943447756,-5000.0,0.00021918,2]
[406560208,1771943447768,-1052.0,0.00022022,2]
[406560209,1771943447781,-1052.0,0.00022094,2]
[406560210,1771943447794,-15357.35,0.000221,2]
[406560211,1771943447805,-1052.0,0.00022163,2]
[406560212,1771943447817,-1052.0,0.00022174,2]
[406560213,1771943447828,-1052.0,0.00022187,2]
[406560214,1771943447838,-1052.0,0.0002223,2]
[406560215,1771943447850,-1052.0,0.00022234,2]
[406560216,1771943447861,-1052.0,0.00022283,2]
[406560217,1771943447874,-1052.0,0.00022297,2]
[406560218,1771943447886,-1052.0,0.00022307,2]
[406560219,1771943447898,-450.0,0.00023,2]
[406560220,1771943447911,-160.0,0.00023,2]
[406560221,1771943447923,-246.75,0.00023234,14]
[406560222,1771943447936,-12275.37,0.0002338,2]
[406560223,1771943447949,-1000.0,0.0002338,2]
[406560224,1771943447963,-168.86,0.00023406,8]
[406560225,1771943447974,-500.0,0.00023684,2]
[406560226,1771943447987,-500.0,0.00023844,10]
[406560227,1771943447999,-454.1749961,0.00024113,2]
[406560228,1771943448011,-246.74,0.00024505,14]
[406560229,1771943448023,-1000.0,0.00024658,2]
[406560230,1771943448035,-150.0,0.00024658,2]
[406560231,1771943448047,-167.64,0.00024793,2]
[406560232,1771943448060,-500.0,0.00025,2]
[406560233,1771943448073,-3684.68319849,0.00025237,2]
[406560234,1771943448087,-150.0,0.0002589,2]
[406560235,1771943448101,-1000.0,0.00026302,2]
[406560236,1771943448113,-200.0,0.00026683,13]
[406560237,1771943448124,-500.0,0.00026811,15]
[406560238,1771943448135,-300.0,0.00026999,10]
[406560239,1771943448147,-985977.0,0.00027,30]
[406560240,1771943448157,-173.87087054,0.00027,30]
[406560241,1771943448169,-550.0,0.00027,2]
[406560242,1771943448180,-1992.03396773,0.00027,14]
[406560243,1771943448193,-150.0,0.00027185,2]
[406560244,1771943448212,-167.64,0.00027273,2]
[406560245,1771943448224,-391.36,0.00027406,2]
[406560246,1771943448237,-286.32833157,0.00027664,2]
[406560247,1771943448248,-898.91183253,0.00027664,2]
[406560248,1771943448260,-339.07700431,0.00027771,2]
[406560249,1771943448272,-173.87087054,0.000278,30]
[406560250,1771943448285,-500.0,0.00028433,18]
[406560251,1771943448299,-150.0,0.00028544,2]
[406560252,1771943448312,-173.87087054,0.000286,30]
[406560253,1771943448323,-600.0,0.00029,2]
[406560254,1771943448335,-1000.0,0.00029225,2]
[406560255,1771943448348,-167.64,0.00029752,2]
[406560256,1771943448359,-15357.35,0.000299,2]
[406560257,1771943448371,-200.0,0.0002996,22]
[406560258,1771943448384,-150.0,0.00029971,2]
[406560259,1771943448396,-300.0,0.0003,120]
[406560260,1771943448410,-500.0,0.00030056,23]
[406560261,1771943448421,-158.02,0.00030411,120]
[406560262,1771943448437,-650.0,0.00031,2]
[406560263,1771943448448,-500.0,0.00031384,2]
[406560264,1771943448460,-150.0,0.0003147,2]
[406560265,1771943448471,-159.62910539,0.00031783,2]
[406560266,1771943448485,-167.15607918,0.00032,120]
[406560267,1771943448497,-184.7789246,0.00032,120]
[406560268,1771943448509,-164.01584354,0.00032,120]
[406560269,1771943448520,-1237.69,0.00032,120]
[406560270,1771943448532,-1000.0,0.00032147,2]
[406560271,1771943448543,-155.72,0.0003215,30]
[406560272,1771943448554,-167.64,0.00032232,2]
[406560273,1771943448565,-167.15607918,0.00033,120]
[406560274,1771943448577,-164.01584354,0.00033,120]
[406560275,1771943448588,-160.83,0.00033,14]
[406560276,1771943448599,-500.0,0.00033023,35]
[406560277,1771943448611,-150.0,0.00033039,10]
[406560278,1771943448622,-158.38200706,0.00033039,10]
[406560279,1771943448633,-150.0,0.00033043,2]
[406560280,1771943448643,-185.75,0.000334,30]
[406560281,1771943448655,-165.44,0.000334,14]
[406560282,1771943448666,-344.83,0.000334,2]
[406560283,1771943448677,-5990.0,0.00033558,5]
[406560284,1771943448688,-339.07700431,0.00033661,2]
[406560285,1771943448700,-217.42,0.00033728,2]
[406560286,1771943448711,-15357.35,0.000338,2]
[406560287,1771943448722,-167.15607918,0.000339,120]
[406560288,1771943448734,-164.01584354,0.000339,120]
[406560289,1771943448745,-150.0,0.00033961,2]
[406560290,1771943448756,-150.0,0.00033962,2]
[406560291,1771943448767,-150.0,0.00033963,2]
[406560292,1771943448778,-150.0,0.00033964,2]
[406560293,1771943448789,-150.0,0.00033965,2]
[406560294,1771943448801,-150.0,0.00033966,2]
[406560295,1771943448811,-150.0,0.00033967,2]
[406560296,1771943448822,-150.0,0.00033968,2]
[406560297,1771943448834,-150.0,0.00033969,2]
[406560298,1771943448845,-150.0,0.0003397,2]
[406560299,1771943448855,-150.0,0.00033971,2]
[406560300,1771943448866,-150.0,0.00033972,2]
[406560301,1771943448877,-206.290511,0.00033973,2]
[406560302,1771943448888,-217.42,0.00034055,2]
[406560303,1771943448899,-151.0,0.00034365,2]
[406560304,1771943448910,-156.587,0.00034365,2]
[406560305,1771943448920,-162.380719,0.00034365,2]
[406560306,1771943448932,-159.89501112,0.00034365,2]
[406560307,1771943448942,-217.42,0.00034383,2]
[406560308,1771943448953,-160.83,0.000344,14]
[406560309,1771943448963,-787.713897,0.00034527,28]
[406560310,1771943448974,-787.713897,0.00034527,28]
[406560311,1771943448986,-787.713897,0.00034527,28]
[406560312,1771943448997,-787.713897,0.00034527,28]
[406560313,1771943449008,-150.0,0.00034696,2]
[406560314,1771943449019,-167.64,0.00034711,2]
[406560315,1771943449030,-1500.0,0.00034795,2]
[406560316,1771943449042,-2724.943,0.00034996,40]
[406560317,1771943449053,-256.257,0.00034996,40]
[406560318,1771943449063,-151.0,0.00034996,31]
[406560319,1771943449074,-151.0,0.00034996,31]
[406560320,1771943449085,-167.15607918,0.00035,120]
[406560321,1771943449096,-164.01584354,0.00035,120]
[406560322,1771943449107,-1000.0,0.0003507,2]
[406560323,1771943449118,-152.0,0.00035392,3]
[406560324,1771943449128,-378.0,0.00035461,30]
[406560325,1771943449139,-395.67072153,0.000355,60]
[406560326,1771943449150,-2455.0,0.00035611,2]
[406560327,1771943449160,-1339.0,0.00035611,2]
[406560328,1771943449171,-165.74,0.000357,14]
[406560329,1771943449182,-150.0,0.0003643,2]
[406560330,1771943449193,-500.0,0.00036865,46]
[406560331,1771943449203,-251.0,0.000369,120]
[406560332,1771943449218,-160.83,0.000369,14]
[406560333,1771943449229,-167.64,0.0003719,2]
[406560334,1771943449241,-1579.0,0.00037669,120]
[406560335,1771943449252,-183.0,0.00037669,120]
[406560336,1771943449263,-300.0,0.00037679,10]
[406560337,1771943449274,-666.0,0.00037679,30]
[406560338,1771943449286,-300.0,0.00037679,10]
[406560339,1771943449296,-549.94,0.00037679,120]
[406560340,1771943449308,-549.94,0.00037679,120]
[406560341,1771943449320,-657.39,0.00037679,2]
[406560342,1771943449332,-657.39,0.00037679,2]
[406560343,1771943449343,-1423.69,0.00037679,120]
[406560344,1771943449354,-1423.69,0.00037679,120]
[406560345,1771943449365,-280363.4402541,0.0003768,2]
[406560346,1771943449377,-558537.596051,0.0003768,2]
[406560347,1771943449388,-43220.2652633,0.0003768,2]
[406560348,1771943449399,-4561.50437003,0.00037999,120]
[406560349,1771943449410,-160.0,0.00038,120]
[406560350,1771943449421,-150.0,0.00038252,2]
[406560351,1771943449431,-2455.0,0.00038611,2]
[406560352,1771943449443,-1339.0,0.00038611,2]
[406560353,1771943449455,-251.0,0.00038745,120]
[406560354,1771943449467,-398.25018667,0.00038867,2]
[406560355,1771943449479,-34852.83684039,0.00039,120]
[406560356,1771943449492,-1218.319,0.00039157,2]
[406560357,1771943449503,-1032.444,0.00039157,2]
[406560358,1771943449512,-3496.0,0.00039157,2]
[406560359,1771943449522,-1040.0,0.00039157,2]
[406560360,1771943449532,-618.0,0.00039157,2]
[406560361,1771943449543,-5980.0,0.00039157,2]
[406560362,1771943449555,-15357.35,0.000392,2]
[406560363,1771943449564,-339.07700431,0.00039552,2]
[406560364,1771943449574,-160.83,0.000396,14]
[406560365,1771943449583,-300.0,0.00039686,10]
[406560366,1771943449592,-124626.5832557,0.00039687,2]
[406560367,1771943449602,-62557.5393236,0.00039867,2]
[406560368,1771943449611,-202.69,0.00039958,7]
[406560369,1771943449620,-1006.55,0.0004,21]
[406560370,1771943449630,-154.0,0.0004,120]
[406560371,1771943449640,-397.11985638,0.0004,7]
[406560372,1771943449649,-4599.96331883,0.0004,10]
[406560373,1771943449659,-27807.9494806,0.00040135,2]
[406560374,1771943449668,-150.0,0.00040165,2]
[406560375,1771943449677,-13958.4737677,0.00040355,2]
[406560376,1771943449687,-251.0,0.00040682,120]
[406560377,1771943449696,-729.0,0.00040735,30]
[406560378,1771943449705,-46189.86317371,0.000409,7]
[406560379,1771943449714,-160.83,0.000409,14]
[406560380,1771943449724,-6623.03809716,0.00040908,5]
[406560381,1771943449733,-30720.69031569,0.00040977,7]
[406560382,1771943449743,-300.0,0.0004098,2]
[406560383,1771943449753,-301.55927827,0.0004098,2]
[406560384,1771943450016,-300.0,0.0004098,2]
[406560385,1771943450045,-301.55927827,0.0004098,2]
[406560386,1771943450060,-443.65842661,0.0004098,2]
[406560387,1771943450069,-173.87087054,0.00041,7]
[406560388,1771943450080,-7602.28258293,0.00041,28]
[406560389,1771943450089,-218.85582303,0.00041042,14]
[406560390,1771943450099,-260.32,0.00041096,120]
[406560391,1771943450109,-5803.1,0.00041096,120]
[406560392,1771943450119,-154.0,0.000413,120]
[406560393,1771943450129,-2000.0,0.000414,2]
[406560394,1771943450139,-500.0,0.00041415,68]
[406560395,1771943450149,-344.83,0.000415,30]
[406560396,1771943450159,-2455.0,0.00041611,2]
[406560397,1771943450168,-1339.0,0.00041611,2]
[406560398,1771943450178,-152.0,0.00041867,4]
[406560399,1771943450187,-1210.0,0.00042157,2]
[406560400,1771943450197,-920.0,0.00042157,2]
[406560401,1771943450207,-3496.0,0.00042157,2]
[406560402,1771943450220,-539.334,0.00042157,2]
[406560403,1771943450231,-150.0,0.00042173,120]
[406560404,1771943450246,-173.87087054,0.000422,7]
[406560405,1771943450256,-3398.05411268,0.000425,120]
[406560406,1771943450268,-800.29,0.00042546,120]
[406560407,1771943450278,-527.94,0.00042546,30]
[406560408,1771943450290,-154.0,0.000426,120]
[406560409,1771943450299,-160.83,0.000426,14]
[406560410,1771943450309,-251.0,0.00042716,120]
[406560411,1771943450318,-431.0,0.000428,30]
[406560412,1771943450327,-294.68215807,0.00042839,60]
[406560413,1771943450336,-500.198866,0.00043,120]
[406560414,1771943450345,-19920.62623976,0.00043,2]
[406560415,1771943450354,-289.36431614,0.00043058,60]
[406560416,1771943450363,-200.0,0.00043068,120]
[406560417,1771943450373,-200.0,0.00043068,120]
[406560418,1771943450382,-1613.931096,0.0004332,2]
[406560419,1771943450391,-289.36431614,0.00043332,60]
[406560420,1771943450400,-15357.35,0.000434,2]
[406560421,1771943450410,-500.0,0.00043652,30]
[406560422,1771943450419,-241.13693012,0.00043661,60]
[406560423,1771943450429,-154.36657739,0.0004376,2]
[406560424,1771943450438,-151.0,0.00043836,120]
[406560425,1771943450447,-151.0,0.00043836,120]
[406560426,1771943450456,-151.0,0.00043836,120]
[406560427,1771943450466,-151.0,0.00043836,120]
[406560428,1771943450475,-156.34,0.00043836,120]
[406560429,1771943450487,-500.0,0.00043958,60]
[406560430,1771943450496,-154.0,0.00044,120]
[406560431,1771943450506,-150.0,0.00044158,120]
[406560432,1771943450515,-160.83,0.000442,14]
[406560433,1771943450526,-9643.7447098,0.00044207,2]
[406560434,1771943450535,-2858.18490911,0.00044232,2]
[406560435,1771943450544,-150.0,0.00044281,120]
[406560436,1771943450558,-549.94,0.00044358,120]
[406560437,1771943450568,-657.39,0.00044358,2]
[406560438,1771943450577,-1423.69,0.00044358,120]
[406560439,1771943450586,-49999.999999,0.00044359,2]
[406560440,1771943450594,-57859.62775656,0.0004444,120]
[406560441,1771943450603,-350.0,0.00044545,5]
[406560442,1771943450612,-438.7,0.00044611,2]
[406560443,1771943450621,-500.0,0.00044747,2]
[406560444,1771943450630,-251.0,0.00044852,120]
[406560445,1771943450639,-1646.19,0.00045,120]
[406560446,1771943450649,-1252.5146465,0.00045,30]
[406560447,1771943450658,-9877.18,0.00045,120]
[406560448,1771943450667,-50555.45886113,0.00045,120]
[406560449,1771943450675,-329.24,0.00045,120]
[406560450,1771943450684,-126049.27001394,0.00045,2]
[406560451,1771943450693,-4038.23362235,0.00045,120]
[406560452,1771943450702,-176.0,0.00045,90]
[406560453,1771943450711,-5603.22694015,0.00045,120]
[406560454,1771943450720,-150.0,0.00045056,30]
[406560455,1771943450729,-500.24398193,0.00045056,30]
[406560456,1771943450739,-150.0,0.00045056,30]
[406560457,1771943450748,-3161.20814662,0.00045056,30]
[406560458,1771943450757,-150.0,0.00045056,30]
[406560459,1771943450766,-198.20235507,0.00045056,30]
[406560460,1771943450775,-25000.0,0.00045058,15]
[406560461,1771943450784,-25000.0,0.00045059,15]
[406560462,1771943450793,-25000.0,0.00045067,15]
[406560463,1771943450801,-151.0,0.00045067,120]
[406560464,1771943450810,-167.200014,0.00045067,120]
[406560465,1771943450820,-151.0,0.00045067,120]
[406560466,1771943450829,-151.0,0.00045067,120]
[406560467,1771943450838,-151.0,0.00045067,120]
[406560468,1771943450847,-151.0,0.00045067,120]
[406560469,1771943450856,-787.713897,0.00045067,28]
[406560470,1771943450865,-787.713897,0.00045067,28]
[406560471,1771943450874,-787.713897,0.00045067,28]
[406560472,1771943450883,-787.713897,0.00045067,28]
[406560473,1771943450892,-284.49243142,0.00045068,120]
[406560474,1771943450901,-150.0,0.00045068,120]
[406560475,1771943450910,-150.0,0.00045068,120]
[406560476,1771943450919,-150.0,0.00045068,120]
[406560477,1771943450929,-277.65171186,0.00045068,120]
[406560478,1771943450940,-150.0,0.00045068,120]
[406560479,1771943450950,-2705.0,0.00045068,2]
[406560480,1771943450959,-178.51167837,0.00045068,120]
[406560481,1771943450968,-2705.0,0.00045068,2]
[406560482,1771943450977,-2705.0,0.00045068,2]
[406560483,1771943450987,-2705.0,0.00045068,2]
[406560484,1771943450996,-2705.0,0.00045068,2]
[406560485,1771943451006,-155.51282354,0.00045068,120]
[406560486,1771943451015,-2705.0,0.00045068,2]
[406560487,1771943451024,-2705.0,0.00045068,2]
[406560488,1771943451032,-2705.0,0.00045068,2]
[406560489,1771943451041,-500.0,0.00045068,120]
[406560490,1771943451051,-2705.0,0.00045068,2]
[406560491,1771943451060,-500.0,0.00045068,120]
[406560492,1771943451070,-2705.0,0.00045068,2]
[406560493,1771943451079,-2705.0,0.00045068,2]
[406560494,1771943451088,-500.0,0.00045068,120]
[406560495,1771943451097,-2705.0,0.00045068,2]
[406560496,1771943451106,-500.0,0.00045068,120]
[406560497,1771943451116,-2705.0,0.00045068,2]
[406560498,1771943451125,-500.0,0.00045068,120]
[406560499,1771943451135,-2705.0,0.00045068,2]
[406560500,1771943451144,-2705.0,0.00045068,2]
[406560501,1771943451153,-648.05114672,0.00045068,120]
[406560502,1771943451162,-2705.0,0.00045068,2]
[406560503,1771943451171,-2705.0,0.00045068,2]
[406560504,1771943451180,-2705.0,0.00045068,2]
[406560505,1771943451189,-2705.0,0.00045068,2]
[406560506,1771943451198,-2705.0,0.00045068,2]
[406560507,1771943451207,-2705.0,0.00045068,2]
[406560508,1771943451220,-2705.0,0.00045068,2]
[406560509,1771943451229,-2705.0,0.00045068,2]
[406560510,1771943451239,-2722.15498182,0.00045068,2]
[406560511,1771943451250,-25000.0,0.00045068,15]
[406560512,1771943451259,-181.72310984,0.00045068,2]
[406560513,1771943451269,-327.10159771,0.00045068,2]
[406560514,1771943451279,-150.0,0.00045068,60]
[406560515,1771943451288,-150.0,0.00045068,60]
[406560516,1771943451297,-253.43383125,0.00045068,60]
[406560517,1771943451307,-240.15036897,0.00045068,60]
[406560518,1771943451316,-150.0,0.00045068,120]
[406560519,1771943451325,-150.0,0.00045068,120]
[406560520,1771943451334,-150.0,0.00045068,120]
[406560521,1771943451343,-192.63004839,0.00045068,120]
[406560522,1771943451352,-500.0,0.00045068,120]
[406560523,1771943451362,-500.0,0.00045068,120]
[406560524,1771943451371,-507.10875232,0.00045068,120]
[406560525,1771943451380,-2000.0,0.000451,2]
[406560526,1771943451390,-350.0,0.00045114,7]
[406560527,1771943451401,-155.52794573,0.00045121,120]
[406560528,1771943451410,-150.0,0.00045205,120]
[406560529,1771943451419,-432.27,0.00045205,120]
[406560530,1771943451428,-150.0,0.00045205,120]
[406560531,1771943451437,-154.0,0.000453,120]
[406560532,1771943451447,-160.83,0.000453,14]
[406560533,1771943451456,-286.32833157,0.0004533,2]
[406560534,1771943451465,-898.91183253,0.0004533,2]
[406560535,1771943451475,-344.83,0.000454,30]
[406560536,1771943451485,-220.56972071,0.000454,2]
[406560537,1771943451495,-560932.58570974,0.000454,30]
[406560538,1771943451503,-200.0,0.0004543,120]
[406560539,1771943451512,-339.07700431,0.00045443,19]
[406560540,1771943451521,-600.0,0.00045479,120]
[406560541,1771943451530,-500.0,0.00045479,2]
[406560542,1771943451539,-500.0,0.00045479,2]
[406560543,1771943451548,-500.0,0.00045479,2]
[406560544,1771943451557,-500.0,0.00045479,2]
[406560545,1771943451566,-500.0,0.00045479,2]
[406560546,1771943451575,-500.0,0.00045479,2]
[406560547,1771943451584,-500.0,0.00045479,2]
[406560548,1771943451593,-500.0,0.00045479,2]
[406560549,1771943451602,-500.0,0.00045479,2]
[406560550,1771943451611,-500.0,0.00045479,2]
[406560551,1771943451619,-500.0,0.00045479,2]
[406560552,1771943451628,-500.0,0.00045479,2]
[406560553,1771943451638,-505.51103944,0.00045479,2]
[406560554,1771943451647,-499999.0,0.000455,20]
[406560555,1771943451656,-303.0,0.000455,30]
[406560556,1771943451664,-434.0,0.000455,30]
[406560557,1771943451674,-309.0,0.000455,30]
[406560558,1771943451683,-150.0,0.00045507,30]
[406560559,1771943451691,-150.0,0.00045507,30]
[406560560,1771943451701,-150.0,0.00045507,30]
[406560561,1771943451710,-150.0,0.00045507,30]
[406560562,1771943451719,-150.0,0.00045507,30]
[406560563,1771943451728,-150.0,0.00045507,30]
[406560564,1771943451738,-150.91920927,0.00045507,30]
[406560565,1771943451747,-150.0,0.00045507,30]
[406560566,1771943451757,-150.0,0.00045507,30]
[406560567,1771943451766,-150.78067952,0.00045507,30]
[406560568,1771943451775,-150.0,0.00045507,30]
[406560569,1771943451783,-150.0,0.00045507,30]
[406560570,1771943451793,-150.0,0.00045507,30]
[406560571,1771943451802,-464.587,0.00045522,2]